Cogmind - Beta 15 @@@ ROGUE MODE // 2025.07.31 @ 11:20:49 Player: satan5 Result: Destroyed by X-62 Marksman with Pulse Rifle Performance ------------- Evolutions (2) 1000 Regions Visited (4) 800 Robots Destroyed (76) 380 Value Destroyed (3501) 3501 Prototype IDs (15) 300 Alien Tech Used (0) 0 Bonus (426) 426 TOTAL SCORE: 6407 Bonus ------- High Alert Combat Kills 226 Entered Garrisons 200 Cogmind --------- Core Integrity 0/550 Matter 221/300 Energy 152/160 System Corruption 0% Temperature Cool (9) Movement Walking (120) Location -8/Garrison Parts ------- > --- POWER (1) -------- Light Nuclear Core > --- PROPULSION (4) --- Aluminum Leg Aluminum Leg Aluminum Leg Carbon-fiber Leg > --- UTILITY (4) ------ Improved Heat Sink Large Storage Unit Target Analyzer Hacking Suite > --- WEAPON (2) ------- Heavy EM Pulse Gun Minigun > --- INVENTORY (15) --- Light Treads Improved Heat Sink Improved Heat Sink Heavy Particle Cannon Ion Cannon Heavy Assault Rifle Minigun Minigun Minigun High-powered Shotgun Gauss Rifle Katana Peak State ------------ > --- POWER ------------ Improved Ion Engine > --- PROPULSION ------- Wheel Gravmag System Gravmag System > --- UTILITY ---------- Improved Heat Sink Large Storage Unit Target Analyzer Hacking Suite > --- WEAPON ----------- Heavy Particle Cannon High-powered Shotgun > --- INVENTORY -------- Light Treads Heavy EM Pulse Gun Heavy EM Pulse Gun EM Shotgun EM Shotgun Ion Cannon Minigun Minigun Minigun Minigun Gauss Rifle Katana [Rating: 30] Favorites ----------- Power Improved Ion Engine Engine Improved Ion Engine Power Core Light Nuclear Core Propulsion Light Treads Treads Light Treads Leg Aluminum Leg Wheel Wheel Hover Unit Gravmag System Utility Large Storage Unit Device Disposable Heat Sink Storage Large Storage Unit Processor Target Analyzer Hackware Hacking Suite Weapon Subdweller Beam Cannon Energy Gun EM Shotgun Energy Cannon Subdweller Beam Cannon Ballistic Gun High-powered Shotgun Slashing Weapon Katana Build | -11 -10 -10 -8 -8 ------- Run | Yrd Mat Sub Mat Gar Slots Evolved 4 | . . . 4 . Power . | . . . . . Propulsion 2 | . . . 2 . Utility 2 | . . . 2 . Weapon . | . . . . . Parts Attached 58 | 7 4 10 18 19 Power 8 | 1 1 1 3 2 Engine 6 | 1 1 1 2 1 Core 2 | . . . 1 1 Reactor . | . . . . . Propulsion 20 | 2 . 2 7 9 Treads 9 | 2 . 2 4 1 Leg 8 | . . . 2 6 Wheel 1 | . . . 1 . Hover 2 | . . . . 2 Flight . | . . . . . Utility 11 | 2 1 2 4 2 Device 7 | 1 . 1 4 1 Storage 2 | 1 1 . . . Processor 1 | . . . . 1 Hackware 1 | . . 1 . . Protection . | . . . . . Artifact . | . . . . . Weapon 19 | 2 2 5 4 6 Energy Gun 11 | 2 2 3 2 2 Energy Cannon 5 | . . 2 2 1 Ballistic Gun 2 | . . . . 2 Ballistic Cannon . | . . . . . Launcher . | . . . . . Special Weapon . | . . . . . Impact Weapon . | . . . . . Slashing Weapon 1 | . . . . 1 Piercing Weapon . | . . . . . Special Melee Weapon . | . . . . . Unidentified Prototypes . | . . . . . Corrupted Parts 1 | . . 1 . . System Corruption 2 | . . 2 . . Parts Lost 31 | . . 4 15 12 Power 5 | . . . 3 2 Propulsion 13 | . . 1 6 6 Utility 5 | . . 1 3 1 Weapon 8 | . . 2 3 3 Highest Loss Streak 7 | . . 4 7 4 To Critical Strikes . | . . . . . Average Backups 13 | 1 10 14 10 12 Power 1 | . 2 2 1 . Propulsion 1 | . 1 3 . 1 Utility 1 | . . 1 . 1 Weapon 8 | . 5 8 8 9 Tool/Special . | . . . . . Unused Backups 17 | . 3 2 3 9 Power 2 | . 2 . . . Propulsion 3 | . . . 1 2 Utility 2 | . . . . 2 Weapon 10 | . 1 2 2 5 Tool/Special . | . . . . . Average Slot Usage (%) 94 | . 100 99 80 91 Engine 11 | . 14 14 8 7 Treads 18 | . 28 28 19 1 Leg 7 | . . . 2 22 Hover 1 | . . . . 3 Device 11 | . 14 13 11 8 Storage 11 | . 14 14 9 9 Processor 2 | . . . . 7 Hackware 3 | . . . 9 9 Energy Gun 7 | . 28 3 3 9 Energy Cannon 13 | . . 24 14 3 Ballistic Gun 1 | . . . . 4 Peak Build Rating 30 | 7 12 15 23 30 Average Rating 16 | 4 10 13 18 24 On Entrance 10 | . 7 12 15 19 Naked Turns . | . . . . . Heaviest Build 46 | 12 34 44 46 40 Greatest Support 80 | 40 40 40 80 40 Greatest Overweight (x) 13 | 3 . 1 13 3 Average Overweight (x) . | . . . . 1 Largest Inventory Capacity 15 | 8 15 15 15 15 Average Capacity 14 | 7 13 15 15 15 Most Carried 15 | 2 15 15 15 15 Average Carried 13 | 1 10 14 10 13 Final Capacity 15 | 8 15 15 15 15 Final Carried 15 | 2 15 15 7 12 Class Distribution -------------------- 65% | Mutant 34% | Scavenger-Mutant Dominant Class ---------------- Mutant | -10/Materials Mutant | -10/Subcaves Mutant | -8/Materials Scavenger-Mutant | -8/Garrison Resources | -11 -10 -10 -8 -8 ----------- Run | Yrd Mat Sub Mat Gar Matter Collected 1006 | 135 175 90 254 352 Remotely . | . . . . . Salvage Created 3064 | 12 495 332 1039 1186 Parts 153 | 2 32 14 45 60 Haulers Intercepted 1 | . 1 . . . Recyclers Shooed 1 | . . . 1 . Parts Field Recycled . | . . . . . Retrieved Matter . | . . . . . Parts Self-Destructed 11 | . . 11 . . Prevented 1 | . . 1 . . Kills | -11 -10 -10 -8 -8 ------- Run | Yrd Mat Sub Mat Gar Combat Hostiles Destroyed 66 | . 12 8 18 28 Guns 45 | . 12 5 5 23 Cannons 19 | . . 3 12 4 Classes Destroyed 13 | 1 5 1 5 1 Builder 2 | . . . 2 . Tunneler 1 | 1 . . . . Hauler 1 | . 1 . . . Recycler 2 | . . . 2 . Operator 2 | . 2 . . . Watcher 2 | . 2 . . . Swarmer 17 | . 6 2 2 7 Grunt 30 | . 6 . 11 13 Duelist 1 | . . . 1 . Sentry 8 | . . . 3 5 Hunter 3 | . . . 1 2 Programmer 1 | . . . . 1 Subdweller 6 | . . 6 . . Best Kill Streak 7 | 1 5 3 7 7 Combat Bots Only 7 | . 5 3 6 7 Max Kills in Single Turn 2 | 1 2 1 2 2 Gunslinging . | . . . . . Exploded . | . . . . . Melee . | . . . . . Uniques/NPCs Destroyed . | . . . . . Combat | -11 -10 -10 -8 -8 -------- Run | Yrd Mat Sub Mat Gar Hostile Shots Fired 381 | . 51 35 128 167 Missed 85 | . 14 8 24 39 Hits 296 | . 37 27 104 128 Melee 10 | . . . 10 . Projectile 286 | . 37 27 94 128 AOE 1 | . . 1 . . Critical Strikes 12 | . 1 1 6 4 Damage Taken 4336 | . 385 674 1621 1656 Core 802 | . 38 209 334 221 Absorbed by Shields 191 | . . . 143 48 Core Remaining (%) 50 | 100 . 1 . . Volleys Fired 230 | 3 29 36 61 101 Largest 2 | 2 2 2 2 2 Hottest 160 | 90 90 160 160 150 Shots Fired 436 | 6 58 70 118 184 Gun 284 | 6 58 30 45 145 Cannon 152 | . . 40 73 39 Launcher . | . . . . . Special . | . . . . . Kinetic 54 | . . . . 54 Thermal 221 | 6 16 42 118 39 Explosive . | . . . . . Electromagnetic 161 | . 42 28 . 91 Robot Hit Streak 27 | 6 10 27 13 13 Robot Miss Streak 5 | . 3 5 2 4 Penetration Max . | . . . . . Secondary Targets 5 | . 3 . . 2 Max Gunslinging Chain 1 | . 1 . . 1 Shots Hit Robots 291 | 6 45 35 86 119 Core Hits 138 | 1 29 19 32 57 Critical Kills 3 | . . . 1 2 Critical Parts Destroyed 2 | . . . 1 1 Critical Strikes 10 | 1 1 . 2 6 Burn 2 | 1 1 . . . Meltdown 1 | . . . 1 . Destroy 4 | . . . 1 3 Corrupt 3 | . . . . 3 Melee Attacks 8 | . . . . 8 Impact . | . . . . . Slashing 8 | . . . . 8 Piercing . | . . . . . Sneak Attacks . | . . . . . Combat Hostiles . | . . . . . Follow-up Attacks . | . . . . . Damage Inflicted 5767 | 68 741 660 2207 2091 Guns 3283 | 68 616 307 732 1560 Cannons 2359 | . . 353 1475 531 Explosions 125 | . 125 . . . Melee . | . . . . . Ramming . | . . . . . Kinetic 749 | . . . . 749 Thermal 3416 | 68 257 353 2207 531 Explosive . | . . . . . Electromagnetic 1602 | . 484 307 . 811 Impact . | . . . . . Slashing . | . . . . . Piercing . | . . . . . Highest Corruption 2 | . . 2 . . Average Corruption 2 | . . 2 . . Corruption Purged . | . . . . . Corruption Blocked . | . . . . . Overload Shots . | . . . . . Overflow Damage 40 | . . . 28 12 Projectiles 40 | . . . 28 12 Explosions . | . . . . . Melee . | . . . . . Knockbacks . | . . . . . Impact . | . . . . . Kinetic . | . . . . . Secondary . | . . . . . Self-Inflicted Damage 14 | . 14 . . . Shots 1 | . 1 . . . Rammed . | . . . . . Targets Rammed . | . . . . . Kicked . | . . . . . Crushed . | . . . . . Highest Temperature 474 | 90 324 196 474 416 Average Temperature 113 | 47 79 86 138 128 Received Heat Transfer 1400 | . 108 96 655 541 Effects 7 | . . . 6 1 Shutdowns 4 | . . . 3 1 Interference 1 | . . . 1 . Matter Decay 2 | . . . 2 . Siege Activations . | . . . . . Martial Activations . | . . . . . Shielding Activations . | . . . . . Robots Disrupted 1 | . 1 . . . Combat Hostiles . | . . . . . Robots Corrupted 1 | . . . . 1 Combat Hostiles 1 | . . . . 1 Parts Fried 5 | . 2 1 . 2 Impact Corruptions . | . . . . . Robots Melted 1 | . . . 1 . Combat Hostiles 1 | . . . 1 . Parts Melted 18 | 1 2 1 11 3 Heat Transferred 4964 | 260 571 481 2935 717 Parts Sabotaged . | . . . . . Parts Stolen . | . . . . . Parts Stripped . | . . . . . Power Chain Reactions 3 | . 3 . . . Alert | -11 -10 -10 -8 -8 ------- Run | Yrd Mat Sub Mat Gar Maximum Alert Level 4 | . 1 . . 4 Low Security (%) 46 | 100 89 . 100 9 Level 1 23 | . 10 . . 37 Level 2 13 | . . . . 23 Level 3 16 | . . . . 28 Level 4 . | . . . . 1 Level 5 . | . . . . . High Security . | . . . . . Max Security . | . . . . . Peak Influence 1117 | 5 233 . 164 1117 Initial 76 | . . . . 76 Average 340 | . 120 . 73 533 Influence Increases 2127 | 5 381 70 510 1161 Destroy 0b10 Robot/C 1200 | . 240 40 360 560 Destroy 0b10 Robot/NC 50 | 5 25 . 20 . Destroy Leader 176 | . 66 . 80 30 Successful Hack 50 | . 21 . 3 26 Disable Machine 15 | . . . . 15 Anti-Garrison Action 350 | . . . . 350 Destroy Structure 76 | . 14 . 17 45 Lose Combat Pursuer 210 | . 15 30 30 135 Influence Decreases 1010 | 5 250 201 392 162 Entered New Map 105 | . . 63 . 42 Time Decay 595 | 5 250 98 242 . Lost Part 310 | . . 40 150 120 Squads Dispatched 6 | . 3 . 3 . Investigation 1 | . 1 . . . Extermination . | . . . . . Reinforcement 2 | . 2 . . . Assault . | . . . . . Garrison 3 | . . . 3 . Intercept . | . . . . . Searches Triggered . | . . . . . Construction Impeded . | . . . . . Haulers Reinforced . | . . . . . Active Scanning Responses . | . . . . . Cargo Convoy Interrupts . | . . . . . Stealth | -11 -10 -10 -8 -8 --------- Run | Yrd Mat Sub Mat Gar Distress Signals 3 | . 2 . 1 . Communications Jammed . | . . . . . Distress Signals . | . . . . . Times Spotted 96 | . 18 14 25 39 Peak Tracking Total 6 | . 6 6 6 4 Tactical Retreats 10 | . 1 2 2 5 Traps | -11 -10 -10 -8 -8 ------- Run | Yrd Mat Sub Mat Gar Traps Triggered 14 | . 1 2 . 11 Indirectly . | . . . . . Trap Hack Attempts . | . . . . . Triggered . | . . . . . Disarmed . | . . . . . Reprogrammed . | . . . . . Reused . | . . . . . Traps Extracted . | . . . . . Installed . | . . . . . Triggered . | . . . . . Machines | -11 -10 -10 -8 -8 ---------- Run | Yrd Mat Sub Mat Gar Machines Disabled 6 | . . . . 6 Max in Single Turn 1 | . . . . 1 Garrison Relay 5 | . . . . 5 Machines Repaired . | . . . . . Machines Dismantled . | . . . . . Machines Sabotaged . | . . . . . Overloaded Fab Kills . | . . . . . Hacking | -11 -10 -10 -8 -8 --------- Run | Yrd Mat Sub Mat Gar Machines Accessed 9 | . 3 3 1 2 Terminals 4 | . 2 . . 2 Fabricators . | . . . . . Repair Stations . | . . . . . Recycling Units 1 | . 1 . . . Scanalyzers . | . . . . . Garrison Access 1 | . . . 1 . Total Hacks 28 | . 11 13 1 3 Successful 24 | . 8 13 1 2 Failed 4 | . 3 . . 1 Catastrophic . | . . . . . Database Lockouts . | . . . . . Manual 9 | . 9 . . . Terminals 12 | . 9 . . 3 Fabricators . | . . . . . Repair Stations . | . . . . . Recycling Units 2 | . 2 . . . Scanalyzers . | . . . . . Garrison Access 1 | . . . 1 . Terminal Hacks 18 | . 3 13 . 2 Record 11 | . . 11 . . Prototype ID Bank 3 | . 3 . . . Open Door 1 | . . 1 . . Emergency Access Points 1 | . . . . 1 Security Stations 1 | . . . . 1 Proto ID Catalog 1 | . . 1 . . Fabricator Hacks . | . . . . . Repair Station Hacks . | . . . . . Recycling Unit Hacks 1 | . 1 . . . Retrieve Components 1 | . 1 . . . Scanalyzer . | . . . . . Garrison Access Hacks 1 | . . . 1 . Unlock Access 1 | . . . 1 . Unauthorized Hacks 4 | . 4 . . . Terminals 4 | . 4 . . . Botnet 2 | . 2 . . . Operators 2 | . 2 . . . Fabricators . | . . . . . Repair Stations . | . . . . . Recycling Units . | . . . . . Scanalyzers . | . . . . . Garrison Access . | . . . . . Data Cores Recovered . | . . . . . Used . | . . . . . Hacking Detections 5 | . 3 . 1 1 Full Trace Events . | . . . . . Feedback Events . | . . . . . Feedback Blocked . | . . . . . Robot Schematics Acquired . | . . . . . Robots Built . | . . . . . Authchips . | . . . . . Time . | . . . . . Total Robot Build Rating . | . . . . . Part Schematics Acquired . | . . . . . Parts Built . | . . . . . Authchips . | . . . . . Time . | . . . . . Total Part Build Rating . | . . . . . Parts Repaired . | . . . . . Time . | . . . . . Parts Recycled . | . . . . . Recycled Matter . | . . . . . Retrieved Matter . | . . . . . Retrieved Components 6 | . 6 . . . Parts Scanalyzed . | . . . . . Part Schematics Acquired . | . . . . . Parts Damaged . | . . . . . Bothacking | -11 -10 -10 -8 -8 ------------ Run | Yrd Mat Sub Mat Gar Used RIF Installer . | . . . . . Robots Hacked . | . . . . . Non-combat . | . . . . . Combat . | . . . . . Robot Hacks Applied . | . . . . . Relay Couplers Released 22 | . . . . 22 Machine Destruction 18 | . . . . 18 Programmers 4 | . . . . 4 Fabnet Peak Effective % . | . . . . . Robots Rewired . | . . . . . Allies Hacked . | . . . . . Hacks Repelled . | . . . . . Allies | -11 -10 -10 -8 -8 -------- Run | Yrd Mat Sub Mat Gar Total Allies . | . . . . . Largest Group . | . . . . . Highest-Rated Group . | . . . . . Highest-Rated Ally . | . . . . . Total Orders . | . . . . . Ally Attacks . | . . . . . Total Damage . | . . . . . Kills . | . . . . . Allies Corrupted . | . . . . . Allies Melted 1 | . . 1 . . Intel | -11 -10 -10 -8 -8 ------- Run | Yrd Mat Sub Mat Gar Active Infowar (turns) 621 | 8 606 7 . . Seismic 621 | 8 606 7 . . Robot Analysis Total . | . . . . . Derelict Logs Recovered 1 | . . 1 . . Drone Launches . | . . . . . Drone Recoveries . | . . . . . Exploration | -11 -10 -10 -8 -8 ------------- Run | Yrd Mat Sub Mat Gar Turns Passed 5625 | 75 606 2498 682 1764 Spaces Moved 2345 | 36 299 981 214 815 Core 21 | 13 . . 8 . Treads 1456 | 23 299 981 153 . Legs 666 | . . . 52 614 Wheels 132 | . . . 1 131 Hover 70 | . . . . 70 Flight . | . . . . . Fastest Speed 50 | 50 160 160 125 120 Average Speed 191 | 152 160 234 189 152 Slowest Speed 700 | 200 160 250 700 330 Overloaded Moves . | . . . . . Propulsion Burnouts . | . . . . . Robots Hopped . | . . . . . Potential Cave-ins . | . . . . . Cave-ins Triggered . | . . . . . Exploration Rate (%) 43 | 4 53 59 21 80 Regions Visited 4 Branch Regions 1 Pre-discovered Areas . | . . . . . Known Exits Taken 1 | . . . 1 . Unknown Exits Taken 3 | 1 1 1 . . Scrap Searched 13 | . . 13 . . Spaces Dug 6 | . . 6 . . Terrain Destroyed 39 | . 12 12 15 . Melee . | . . . . . Projectile 27 | . . 12 15 . AOE 12 | . 12 . . . Terrain Rammed . | . . . . . Walls Destroyed . | . . . . . Machines Disabled . | . . . . . Actions | -11 -10 -10 -8 -8 --------- Run | Yrd Mat Sub Mat Gar Total 3030 | 47 369 1108 367 1139 Wait 270 | . 17 71 55 127 Move 2342 | 35 298 980 214 815 Hop . | . . . . . Pick Up 49 | 2 16 6 9 16 Fast Attach 24 | 7 . 1 8 8 Attach 22 | . . 3 12 7 Detach . | . . . . . Swap 24 | . 4 7 3 10 Drop 19 | . 5 4 5 5 Fire 230 | 3 29 36 61 101 Melee 8 | . . . . 8 Ram . | . . . . . Kick . | . . . . . Crush . | . . . . . Escape Stasis 42 | . . . . 42 Rewire . | . . . . . Trap . | . . . . . Miscellaneous . | . . . . . Route ------- -11/Scrapyard -10/Materials (discovered 2 exits: [*Mat] / *Sub) -10/Subcaves -8/Materials (discovered 3 exits: [*Sto x2] / Gar) -8/Garrison (discovered 4 exits: [*Mat x4]) History --------- Turn | Location | Event 14 | -11/Scrapyard | Discovered new exit (range 16) 76 | -11/Scrapyard | Entered Materials 314 | -10/Materials | Build established: Mutant 382 | -10/Materials | Discovered new exit (range 15) 669 | -10/Materials | Discovered new exit (range 9) 682 | -10/Materials | Entered Subcaves 688 | -10/Subcaves | Ambushed by Subdwellers from Twisted Machinery 756 | -10/Subcaves | Lost 4 parts (1n1u2w) 943 | -10/Subcaves | Core integrity fell below 50% 1272 | -10/Subcaves | Visited 4L-MR0's lab 1691 | -10/Subcaves | Learned Materials terminal intel 2127 | -10/Subcaves | Visited Clippyterm 2135 | -10/Subcaves | Learned Factory trap positions 2412 | -10/Subcaves | Core integrity fell below 20% 2514 | -10/Subcaves | Disturbed a concealed Subdweller 2674 | -10/Subcaves | Shifting Twisted Machinery released Scrap Shield 3166 | -10/Subcaves | Discovered new exit (range 4) 3180 | -10/Subcaves | Entered Materials 3180 | -8/Materials | Evolved 4 slots: Propulsion x2, Utility x2 3181 | -8/Materials | Loaded intel: 12 terminal locations 3183 | -8/Materials | Discovered new exit (range 15) 3316 | -8/Materials | Discovered new exit (range 10) 3447 | -8/Materials | Garrison activated, responded to threat 3576 | -8/Materials | Lost 7 parts (1p3n1u2w) 3647 | -8/Materials | Core integrity fell below 50% 3695 | -8/Materials | Lost 6 parts (2p2n1u1w) 3862 | -8/Materials | Identified exit to Garrison 3862 | -8/Materials | Entered Garrison 3934 | -8/Garrison | Triggered checkpoint 3953 | -8/Garrison | Garrison Relay disabled 3961 | -8/Garrison | Garrison Relay disabled 4061 | -8/Garrison | Lost 4 parts (2n1u1w) 4250 | -8/Garrison | Triggered checkpoint 4318 | -8/Garrison | Triggered checkpoint 4349 | -8/Garrison | Build established: Scavenger-Mutant 4408 | -8/Garrison | Triggered checkpoint 4460 | -8/Garrison | Garrison Relay disabled 4528 | -8/Garrison | Discovered new exit (range 10) 4705 | -8/Garrison | Core integrity fell below 20% 4999 | -8/Garrison | Discovered new exit (range 16) 5079 | -8/Garrison | Triggered checkpoint 5262 | -8/Garrison | Triggered checkpoint 5300 | -8/Garrison | Garrison Relay disabled 5354 | -8/Garrison | Discovered new exit (range 8) 5370 | -8/Garrison | Triggered checkpoint 5405 | -8/Garrison | Discovered new exit (range 5) 5440 | -8/Garrison | Destroyed 7 combat bots 5572 | -8/Garrison | Triggered checkpoint 5593 | -8/Garrison | Learned Materials security intel 5595 | -8/Garrison | Garrison Relay disabled 5626 | -8/Garrison | Destroyed by X-62 Marksman with Pulse Rifle Last Messages --------------- 05593_ Connecting with Garrison Terminal... >>Download(Security) Retrieving Materials security records... Downloaded coordinate data. Data stored: Materials security intel. 05595_ Garrison Relay disabled. 05595_ Relay Coupler [NC] tumbles out of relay unit. 05595_ Relay Coupler [Sentry] tumbles out of relay unit. 05595_ Relay Coupler [NC] tumbles out of relay unit. 05613_ Aluminum Leg destroyed. 05616_ Destroyed Heat Sink. 05619_ Y-45 Defender misfires. 05620_ Penetrated by Slug. 05625_ Y-45 Defender suffers critical hit (Destroy). 05625_ Imp. Ion Engine melted. 05625_ Y-45 Defender destroyed. Map ----- +----------------------------------------------------+ | | | | | | | | | | | | | | | | | | | | | | | | | | | ??????????????????????????????? | | ??????????????????????????????? | | ???????????????????????######?? | | ???????????????????????# #"#?? | | ???????????????????????# !"#?? | | ???????????????????##### ! #?? | | ???????????????????#" !"#?? | | ???????????????????#"T"# #"#?? | | ???????????????????##### #???? | | ???????????????????????# #???? | | ######################## ###?? | | [Y #?? | | @%[#?? | | ??### #####"##### ###x####?? | | ????# ????# #???# #?#Y?????? | | ##### #####"###?#####?#??????? | | #??????????????? | | #??????????????? | | #??????????????? | | #??????????????? | | #?????+???+????? | | #??????????????? | | #??????????????? | | #??????????????? | | #??????????????? | | < #??????????????? | | #??????????????? | | #??????????????? | | #??????????????? | | #??????????????? | | #??????????????? | | #??????????????? | | #??????????????? | | #??????????????? | | #??????????????? | | ##### #########??????????????? | | ????# #??????????????????????? | +----------------------------------------------------+ Best States ------------- Heat Dissipation 45 Coolant Potential 50 Energy Generation 14 Energy Capacity 265 Matter Stores 300 Matter Capacity 300 Sight Range 16 Terrain Scan Density 10 Evasion (%) 55 Target Analysis 5 Recoil Reduction 4 Offensive Hacking 10 Item Schematics ----------------- None Robot Schematics ------------------ None Fabricated ------------ Nothing Repaired ---------- Nothing Alien Tech Used ----------------- None Achievements -------------- None Challenges ------------ None Game ------ Seed OmegaClaymoresTendrils Manual? 0 Play Time 00:29:40 Cumulative 333.7 hours Start 2025.07.31 @ 10:51:46 End 2025.07.31 @ 11:20:49 Sessions 1 Manual Loads 0 Difficulty Rogue Special Mode None Game No. 161 Rogue 147 Adventurer 14 Explorer 0 Win Type - Total 18 Types 15/0/1/1/0/0/0/0/1/0 Lore% 64 Gallery% 73 Achievement% 68 Wizard Run 0 Options --------- Layout 1 ASCII 0 Keyboard 0 Movement Mouse Keybinds 0 Fullscreen 1 Font 24/Smallcaps Map View 50x35 Zoom Use 0% Tactical HUD 1 Map Filters NONE Filters NONE Steam 1 RUN: 920d84fa-9a12-4625-b576-2db66e069be6